[Event "Tatry Open 2018"]
[Site "Tatranska Lomnica"]
[Date "2018.10.07"]
[Round "9"]
[White "Malik, Jan"]
[Black "Mrva, Martin"]
[Result "1/2-1/2"]
[ECO "B00"]
[WhiteElo "2300"]
[BlackElo "2430"]
[Annotator "RC"]
[PlyCount "67"]
[EventDate "2018.09.30"]
[EventType "swiss"]
[EventCountry "SVK"]
[SourceTitle "playchess.com"]
[Source "ChessBase"]
[SourceQuality "1"]
[TimeControl "40/5400+30:1800+30"]

1. e4 {[%emt 0:00:00]} d6 {[%emt 0:00:00]} 2. d4 {[%emt 0:00:00]} a6 {[%emt 0:00:14]} 3. Nc3 {[%emt 0:01:51]} Nd7 {[%emt 0:03:10]} 4. f4 {[%emt 0:00:37]} b5 {[%emt 0:02:41]} 5. Nf3 {[%emt 0:02:11]} Bb7 {[%emt 0:01:36]} 6. e5 {[%emt 0:05:12]} e6 {[%emt 0:02:41]} 7. Bd3 {[%emt 0:01:16]} c5 {[%emt 0:02:42]} 8. exd6 {[%emt 0:07:50]} Bxd6 {[%emt 0:02:56]} 9. Be4 {[%emt 0:02:36]} Qc7 {[%emt 0:16:13]} 10. Bxb7 {[%emt 0:00:24]} Qxb7 {[%emt 0:00:05]} 11. Qe2 {[%emt 0:02:15]} Ngf6 {[%emt 0:06:23]} 12. dxc5 {[%emt 0:05:08]} Bxc5 {[%emt 0:11:34]} 13. Be3 {[%emt 0:02:51]} Rc8 {[%emt 0:03:18]} 14. O-O {[%emt 0:09:12]} O-O {[%emt 0:01:52]} 15. Bxc5 {[%emt 0:01:46]} Rxc5 {[%emt 0:00:28]} 16. a3 {[%emt 0:01:56]} Rfc8 {[%emt 0:00:55]} 17. Rad1 {[%emt 0:01:41]} Rc4 {[%emt 0:08:53]} 18. Ne5 {[%emt 0:01:38]} Nxe5 {[%emt 0:02:23]} 19. fxe5 {[%emt 0:00:45]} Ng4 {[%emt 0:01:52]} 20. Rd3 {[%emt 0:06:55]} Qc7 {[%emt 0:05:03]} 21. Rd6 {[%emt 0:05:09]} a5 {[%emt 0:08:03]} 22. Kh1 {[%emt 0:07:41]} Qc5 {[%emt 0:04:09]} 23. Qd2 {[%emt 0:05:45]} g6 {[%emt 0:04:45]} 24. h3 {[%emt 0:05:35]} Nxe5 {[%emt 0:00:30]} 25. Rd8+ {[%emt 0:00:05]} Kg7 {[%emt 0:01:48]} 26. Rxc8 {[%emt 0:00:47]} Qxc8 {[%emt 0:00:06]} 27. Nxb5 {[%emt 0:00:21]} Rxc2 {[%emt 0:01:36]} 28. Qf4 {[%emt 0:01:54]} Qb8 {[%emt 0:01:27]} 29. Nd4 {[%emt 0:02:33]} Rxb2 {[%emt 0:02:47]} 30. Qf6+ {[%emt 0:01:31]} Kh6 {[%emt 0:01:56]} 31. Qh4+ {[%emt 0:01:19]} Kg7 {[%emt 0:00:05]} 32. Qf6+ {[%emt 0:00:04]} Kh6 {[%emt 0:00:05]} 33. Qh4+ {[%emt 0:00:31]} Kg7 {[%emt 0:00:01]} 34. Qf6+ {[%emt 0:00:09]} 1/2-1/2

[Event "Tatry Open 2018"]
[Site "Tatranska Lomnica"]
[Date "2018.10.07"]
[Round "9"]
[White "Zylka, Stanislaw"]
[Black "Demeter, Peter"]
[Result "1-0"]
[ECO "B07"]
[WhiteElo "2300"]
[BlackElo "2156"]
[Annotator "NA"]
[PlyCount "45"]
[EventDate "2018.09.30"]
[EventType "swiss"]
[EventCountry "SVK"]
[SourceTitle "playchess.com"]
[Source "ChessBase"]
[SourceQuality "1"]
[TimeControl "40/5400+30:1800+30"]

{[%evp 8,45,39,47,32767,36,120,138,132,154,147,36,64,70,72,66,-7,62,68,71,181,192,212,224,280,270,283,269,32767,299,486,32767,995,1211,1028,1628,1630,1936,2001,2481]} 1. e4 {[%emt 0:00:00]} d6 {[%emt 0:00:00]} 2. d4 {[%emt 0:00:00]} Nf6 {[%emt 0:00:03]} 3. Nc3 {[%emt 0:00:00]} g6 {[%emt 0:00:06]} 4. Bg5 {[%emt 0:00:05]} Bg7 {[%emt 0:00:06] LiveBook: 987 Partien} 5. Qd2 {[%emt 0:00:16]} O-O {[%emt 0:01:04]} 6. O-O-O {[%emt 0:00:43]} c5 {[%emt 0:03:38] [#] B07: Pirc Defence: Miscellaneous Systems} (6... c6 $14) (6... Nc6 7. Nge2 e5 8. d5 Ne7 9. f3 a6 10. g4 b5 11. Ng3 Ne8 12. h4 f6 13. Bh6 b4 14. Nce2 {1-0 (38) Tomczak,J (2588)-Ponomariov,R (2694) Katowice 2017}) 7. dxc5 $1 {[%emt 0:12:20]} Qa5 {[%emt 0:00:07]} 8. cxd6 {[%emt 0:00:44]} exd6 {[%emt 0:00:06]} 9. Bh6 $146 {[%emt 0:13:58]} (9. a3 $16) ({Predecessor:} 9. Bc4 Nc6 10. Nf3 Bg4 11. Bh6 Ne5 12. Bxg7 Kxg7 13. Be2 Rfd8 14. Nd4 Bxe2 15. Ndxe2 {0-1 (49) Fercec,N (2492)-Bosnjak,N (2186) Sibenik 2010}) 9... Nxe4 $1 {[%emt 0:07:24]} 10. Nxe4 {[%emt 0:01:55]} Qxa2 {[%emt 0:00:08]} 11. Qe3 {[%emt 0:11:47]} ({Much weaker is} 11. c3 Qa1+ 12. Kc2 Qa4+ 13. Kc1 Qxe4 $15) 11... Qxb2+ {[%emt 0:01:49]} ({Don't blunder} 11... Bxb2+ $2 12. Kd2 $18) 12. Kd2 {[%emt 0:00:10]} Bxh6 {[%emt 0:03:53]} 13. Qxh6 {[%emt 0:00:15]} Qb4+ {[%emt 0:02:30]} (13... d5 $16 14. Ng5 Qb4+ 15. c3 Qb2+ 16. Kd3 Bf5+ 17. Ke3 Qxc3+ 18. Bd3 Re8+ 19. Kf3 Be4+ 20. Kg3 Qe5+ 21. f4 Qg7 22. Qxg7+ Kxg7) 14. Nc3 {[%emt 0:00:43]} Bf5 {[%emt 0:14:35]} 15. Rb1 {[%emt 0:02:48]} Qd4+ {[%emt 0:05:23]} 16. Bd3 {[%emt 0:00:14]} Bxd3 {[%emt 0:00:09]} 17. cxd3 {[%emt 0:00:12]} b6 {[%emt 0:03:12]} 18. Nge2 {[%emt 0:00:20]} Qc5 {[%emt 0:03:30]} (18... Qg7 $142 19. Qxg7+ Kxg7) 19. Rb5 {[%emt 0:03:14]} Qc7 {[%emt 0:02:09]} 20. Nd5 {[%emt 0:02:18]} Qd8 {[%emt 0:00:06]} 21. h4 {[%emt 0:01:55]} f6 {[%emt 0:02:11]} 22. h5 $18 {[%emt 0:01:07]} g5 {[%emt 0:00:07]} 23. Nd4 {[%emt 0:00:26]} 1-0

[Event "Tatry Open 2018"]
[Site "Tatranska Lomnica"]
[Date "2018.10.07"]
[Round "9"]
[White "Petran, Peter"]
[Black "Dzikowski, Michal"]
[Result "1/2-1/2"]
[ECO "A08"]
[WhiteElo "2274"]
[BlackElo "2126"]
[Annotator "NA"]
[PlyCount "100"]
[EventDate "2018.09.30"]
[EventType "swiss"]
[EventCountry "SVK"]
[SourceTitle "playchess.com"]
[Source "ChessBase"]
[SourceQuality "1"]
[TimeControl "40/5400+30:1800+30"]

{[%evp 8,98,0,-15,0,32767,32767,-6,-2,-17,0,-19,-14,-27,-32,-27,-24,-29,-25,-24,7,-12,-28,-45,-41,-29,-18,-56,-37,-53,-41,-47,-29,-62,-10,-29,-9,-45,32767,32767,24,24,32767,32767,14,25,0,0,30,0,21,32767,32767,32767,4,0,50,54,32767,48,66,92,32767,53,69,83,32767,107,72,32767,32767,32767,32767,66,32767,81,83,59,89,32767,32767,0,0,0,0,0,0,32767,0,32767,0,0,0]} 1. g3 {[%emt 0:00:00]} Nf6 {[%emt 0:00:00]} 2. Bg2 {[%emt 0:00:00]} d5 {[%emt 0:00:09]} 3. Nf3 {[%emt 0:00:11]} e6 {[%emt 0:02:19]} 4. d3 {[%emt 0:00:07]} Be7 {[%emt 0:00:23]} 5. Nbd2 {[%emt 0:00:06]} O-O {[%emt 0:01:08]} 6. O-O {[%emt 0:00:06]} c5 {[%emt 0:00:37]} 7. e4 {[%emt 0:00:16]} Nc6 {[%emt 0:00:51]} 8. Re1 {[%emt 0:00:07]} b6 {[%emt 0:04:38]} 9. e5 {[%emt 0:00:49]} Nd7 {[%emt 0:00:23]} 10. c3 {[%emt 0:00:05]} Qc7 {[%emt 0:03:07]} 11. Qe2 {[%emt 0:01:31]} Bb7 {[%emt 0:05:36]} 12. Nf1 {[%emt 0:00:29] LiveBook: 15 Games C00: French: Unusual White 2nd moves} (12. h4 b5 13. Nf1 b4 14. h5 bxc3 15. bxc3 Ba6 16. h6 g6 17. Bf4 Qa5 18. Rac1 c4 19. d4 Ba3 {1-0 (31) Hera,I (2611)-Ganguly,S (2658) Biel 2017}) 12... Rac8 {[%emt 0:02:21]} 13. Bf4 {[%emt 0:00:23]} d4 {[%emt 0:04:56]} 14. c4 $146 {[%emt 0:04:02]} ({Predecessor:} 14. h4 Rfe8 15. h5 Nf8 16. N1h2 Qd7 17. c4 Ba8 18. Ng4 Qd8 19. Nd2 g5 {1-0 (40) Maes,W (2321)-Segers,V (2102) Brasschaat 2003}) 14... Qb8 {[%emt 0:06:08]} 15. h4 {[%emt 0:00:11]} Bd8 {[%emt 0:06:50]} 16. N1h2 {[%emt 0:02:13]} Bc7 {[%emt 0:01:34]} 17. h5 {[%emt 0:01:23]} Rce8 {[%emt 0:05:20]} 18. Ng4 {[%emt 0:00:37]} f6 {[%emt 0:04:35]} 19. a3 {[%emt 0:09:12]} a5 {[%emt 0:07:39]} 20. b3 {[%emt 0:02:26]} Ncxe5 {[%emt 0:04:36]} 21. Nfxe5 {[%emt 0:00:48]} Nxe5 {[%emt 0:00:35]} 22. Bxe5 {[%emt 0:00:35]} Bxe5 {[%emt 0:00:52]} 23. Nxe5 {[%emt 0:05:13]} fxe5 {[%emt 0:00:26]} 24. Qxe5 {[%emt 0:00:16]} Qxe5 {[%emt 0:00:45]} 25. Rxe5 {[%emt 0:00:07]} Bxg2 {[%emt 0:00:40]} 26. Kxg2 {[%emt 0:00:05]} Rf5 $1 {[%emt 0:02:01]} 27. Rae1 {[%emt 0:03:57]} Kf7 {[%emt 0:04:22]} 28. f4 {[%emt 0:13:33]} Rxe5 {[%emt 0:01:38]} 29. fxe5 {[%emt 0:00:59]} Ra8 {[%emt 0:01:32]} 30. Rb1 {[%emt 0:00:48]} h6 {[%emt 0:03:14]} 31. Kf3 {[%emt 0:00:23]} Ke7 {[%emt 0:00:40]} 32. b4 $1 {[%emt 0:02:52]} axb4 {[%emt 0:04:50]} 33. axb4 {[%emt 0:00:11]} Rf8+ {[%emt 0:05:30]} 34. Ke4 {[%emt 0:00:27]} Rf2 {[%emt 0:01:27]} 35. bxc5 {[%emt 0:00:12]} bxc5 {[%emt 0:00:02]} 36. Rb7+ {[%emt 0:02:18]} Kf8 {[%emt 0:00:19]} 37. Rc7 {[%emt 0:01:17]} Re2+ {[%emt 0:00:11]} 38. Kf4 {[%emt 0:00:16]} Rf2+ {[%emt 0:00:13]} 39. Kg4 {[%emt 0:00:55]} Rd2 {[%emt 0:00:26]} 40. Rxc5 {[%emt 0:00:16]} Rxd3 {[%emt 0:00:11]} 41. Rc8+ {[%emt 0:30:51]} Ke7 {[%emt 0:32:33]} 42. Rc7+ {[%emt 0:00:08]} Kf8 {[%emt 0:00:59]} 43. Rd7 {[%emt 0:00:15]} Rd1 {[%emt 0:00:54]} 44. Kf3 {[%emt 0:11:54]} d3 {[%emt 0:02:28]} 45. c5 {[%emt 0:13:43]} Rc1 {[%emt 0:00:55]} 46. Rxd3 {[%emt 0:02:05]} Rxc5 {[%emt 0:00:05]} 47. Ke4 {[%emt 0:00:55]} Ra5 {[%emt 0:00:43]} 48. Rd4 {[%emt 0:00:18]} Ke7 {[%emt 0:00:55]} 49. Rb4 {[%emt 0:00:08]} Kf7 $11 {[%emt 0:01:04]} 50. Rb7+ {[%emt 0:00:25]} Kf8 {[%emt 0:00:07]} 1/2-1/2

[Event "Tatry Open 2018"]
[Site "Tatranska Lomnica"]
[Date "2018.10.07"]
[Round "9"]
[White "Franzen, Jozef"]
[Black "Jablonicky, Martin"]
[Result "0-1"]
[ECO "A08"]
[WhiteElo "2256"]
[BlackElo "2344"]
[Annotator "NA"]
[PlyCount "146"]
[EventDate "2018.09.30"]
[EventType "swiss"]
[EventCountry "SVK"]
[SourceTitle "playchess.com"]
[Source "ChessBase"]
[SourceQuality "1"]
[TimeControl "40/5400+30:1800+30"]

{[%evp 10,107,-17,32767,32767,32767,-12,-4,0,-25,0,-21,-11,-50,-38,-40,-5,0,0,0,0,0,15,17,53,25,95,32767,114,32767,32767,95,131,41,22,25,50,40,58,73,66,32767,32767,32767,127,32767,134,69,80,32767,32767,131,150,32767,173,104,156,203,32767,255,32767,32767,277,172,168,174,32767,162,311,32767,167,196,190,201,187,197,202,32767,32767,182,190,220,32767,32767,192,258,197,264,254,192,208,32767,599,47,32767,-46,-8,-15,-17,-113]} 1. e4 {[%emt 0:00:00]} c5 {[%emt 0:01:33]} 2. Nf3 {[%emt 0:00:00]} e6 {[%emt 0:00:13]} 3. d3 {[%emt 0:00:00]} d5 {[%emt 0:00:45]} 4. Nbd2 {[%emt 0:00:03]} Nc6 {[%emt 0:00:05]} 5. g3 {[%emt 0:00:08]} Nf6 {[%emt 0:01:46]} 6. Bg2 {[%emt 0:00:10]} Be7 {[%emt 0:00:03]} 7. O-O {[%emt 0:00:13]} O-O {[%emt 0:00:33]} 8. Re1 $1 {[%emt 0:00:17]} Qc7 {[%emt 0:00:07]} 9. Qe2 {[%emt 0:04:06]} b5 {[%emt 0:02:29]} 10. Nf1 {[%emt 0:06:06]} Bb7 {[%emt 0:09:08]} 11. e5 {[%emt 0:00:56]} Nd7 {[%emt 0:00:08]} 12. Bf4 {[%emt 0:00:14] C00: French: Unusual White 2nd moves} Nd4 {[%emt 0:00:54]} (12... Rfc8 13. Ne3 Qd8 14. h4 h6 15. c3 b4 16. c4 Nb6 17. Rad1 Rc7 18. Ng4 Qf8 19. Qe3 Nd4 20. Nxd4 cxd4 {0-1 (44) Svidler,P (2760)-Kramnik,V (2800) Moscow 2018}) 13. Nxd4 {[%emt 0:00:24]} cxd4 {[%emt 0:00:04] LiveBook: 3 Games} 14. Qg4 {[%emt 0:07:23]} Rfc8 {[%emt 0:00:58]} 15. Re2 {[%emt 0:01:00]} Qc5 $146 {[%emt 0:26:17]} ({Predecessor:} 15... b4 16. h4 a5 17. h5 Bf8 18. Nh2 Qb6 19. Nf3 a4 {0-1 (40) Pham Guerrero,S (2180)-Lacasa Diaz,J (2398) Andorra 2003}) 16. h4 {[%emt 0:01:09]} Qb4 {[%emt 0:00:03]} 17. b3 {[%emt 0:07:22]} Rc6 {[%emt 0:00:18]} (17... Qc3 $11 {hält das Gleichgewicht.} 18. Rc1 Qa5) 18. Nh2 {[%emt 0:05:42]} Rac8 {[%emt 0:01:19]} 19. a3 {[%emt 0:01:55]} Qc3 {[%emt 0:03:49]} 20. Ra2 {[%emt 0:00:24]} Ra6 {[%emt 0:00:07]} 21. Bd2 {[%emt 0:07:31]} ({White should play} 21. Bc1 $16) 21... Qc7 {[%emt 0:00:10]} 22. Nf3 {[%emt 0:01:03]} Rxa3 {[%emt 0:01:29] [#]} 23. Bh6 $1 {[%emt 0:02:53]} g6 {[%emt 0:00:03]} 24. Rxa3 {[%emt 0:00:06]} Bxa3 {[%emt 0:00:04]} 25. Nxd4 {[%emt 0:04:08]} Qb6 {[%emt 0:06:59]} 26. h5 {[%emt 0:00:22]} Bc5 {[%emt 0:01:40]} (26... a5 $14) 27. Nf3 {[%emt 0:03:00]} Bf8 {[%emt 0:01:25]} 28. Bxf8 {[%emt 0:01:32]} Nxf8 {[%emt 0:00:19]} 29. Qf4 {[%emt 0:01:55]} Qd8 {[%emt 0:03:04]} 30. Nh2 {[%emt 0:07:26]} g5 {[%emt 0:08:42]} 31. Qb4 {[%emt 0:00:31]} Bc6 {[%emt 0:07:03]} 32. Ng4 {[%emt 0:01:14]} Kg7 {[%emt 0:00:42]} 33. h6+ {[%emt 0:00:41]} Kh8 {[%emt 0:00:02]} 34. d4 {[%emt 0:02:23]} a5 {[%emt 0:01:17]} 35. Qd2 {[%emt 0:00:13]} a4 {[%emt 0:00:11]} 36. bxa4 {[%emt 0:05:23]} bxa4 {[%emt 0:00:04]} 37. Re3 {[%emt 0:00:30]} Qe7 {[%emt 0:01:47]} 38. Qc1 {[%emt 0:07:14]} Ra8 $2 {[%emt 0:05:11]} (38... Bb5 $16 {keeps fighting.}) 39. Ra3 {[%emt 0:00:14]} Bb5 {[%emt 0:01:17]} 40. Bf1 {[%emt 0:02:43]} Bxf1 {[%emt 0:00:59]} 41. Kxf1 {[%emt 0:30:02]} Ng6 {[%emt 0:30:38]} 42. Kg2 {[%emt 0:00:46]} Nf8 {[%emt 0:13:37]} 43. Nf6 {[%emt 0:03:11]} Ng6 {[%emt 0:00:03]} 44. Qb2 {[%emt 0:01:15]} Qf8 {[%emt 0:01:24] [#]} 45. Ng4 $1 {[%emt 0:01:57]} Ne7 {[%emt 0:00:00]} 46. Qb4 {[%emt 0:00:00]} Qe8 {[%emt 0:00:00]} 47. Nf6 Qf8 48. Rxa4 {[%emt 0:00:00]} Rxa4 {[%emt 0:00:00]} 49. Qxa4 {[%emt 0:00:00]} Nf5 {[%emt 0:00:00]} 50. g4 {[%emt 0:00:00]} (50. c4 $142 dxc4 51. Qxc4 Nxh6 52. Qc2) 50... Nxh6 $2 {[%emt 0:00:00]} (50... Ne7 51. f4 gxf4) 51. Qd7 $2 {[%emt 0:00:00]} (51. c4 $18 dxc4 52. Qc2 (52. Qxc4 Ng8 $14)) 51... Ng8 {[%emt 0:00:00]} 52. Kf3 {[%emt 0:00:00]} (52. Nh5 $11) 52... Nxf6 {[%emt 0:00:22]} 53. exf6 {[%emt 0:00:00]} h6 {[%emt 0:00:04]} 54. Qe7 $17 {[%emt 0:00:00]} (54. c4 $11 {hält das Gleichgewicht.} dxc4 55. d5) 54... Qg8 {[%emt 0:00:03]} 55. Ke3 {[%emt 0:00:00]} Kh7 {[%emt 0:00:07]} 56. c3 {[%emt 0:02:29]} Kg6 {[%emt 0:00:07]} 57. f4 {[%emt 0:00:18]} gxf4+ {[%emt 0:00:09]} 58. Kxf4 {[%emt 0:00:03]} Qb8+ {[%emt 0:04:24]} 59. Kf3 {[%emt 0:00:08]} Qb3 {[%emt 0:00:17]} 60. Qc7 {[%emt 0:00:22]} Qd1+ {[%emt 0:00:07]} 61. Kg3 {[%emt 0:00:15]} Qe1+ {[%emt 0:00:14]} 62. Kh3 {[%emt 0:01:14]} Qe3+ {[%emt 0:00:51]} 63. Kh4 {[%emt 0:00:15]} Kxf6 {[%emt 0:01:08]} 64. Qd8+ {[%emt 0:00:01]} Kg7 {[%emt 0:00:06]} 65. Qc7 {[%emt 0:00:08]} Qe4 {[%emt 0:02:36]} 66. Kg3 {[%emt 0:00:37]} Qe3+ {[%emt 0:00:43]} 67. Kh4 {[%emt 0:00:08]} Qf3 {[%emt 0:00:49]} 68. Qc8 {[%emt 0:00:32]} Qg2 {[%emt 0:00:41]} 69. Qc7 {[%emt 0:00:19]} Kg6 {[%emt 0:00:31]} 70. Qe5 {[%emt 0:00:44]} Qf2+ {[%emt 0:00:45]} 71. Kh3 {[%emt 0:00:03]} Qf3+ {[%emt 0:00:04]} 72. Kh2 {[%emt 0:01:08]} Qxg4 {[%emt 0:00:21]} 73. Qh8 {[%emt 0:00:02]} Qe2+ {[%emt 0:00:34]} 0-1

[Event "Tatry Open 2018"]
[Site "Tatranska Lomnica"]
[Date "2018.10.07"]
[Round "9"]
[White "Pniaczek, Marek"]
[Black "Domanski, Lukasz"]
[Result "1-0"]
[ECO "B04"]
[WhiteElo "2234"]
[BlackElo "2076"]
[Annotator "ChessBase"]
[PlyCount "69"]
[EventDate "2018.09.30"]
[EventType "swiss"]
[EventCountry "SVK"]
[SourceTitle "playchess.com"]
[Source "ChessBase"]
[SourceQuality "1"]
[TimeControl "40/5400+30:1800+30"]

1. e4 {[%emt 0:00:00]} Nf6 {[%emt 0:01:25]} 2. e5 {[%emt 0:00:00]} Nd5 {[%emt 0:00:08]} 3. d4 {[%emt 0:00:00]} d6 {[%emt 0:00:07]} 4. Nf3 {[%emt 0:00:12]} Nb6 {[%emt 0:00:06]} 5. a4 {[%emt 0:00:48]} a5 {[%emt 0:00:30]} 6. Nc3 {[%emt 0:00:49]} e6 {[%emt 0:02:51]} 7. Bd3 {[%emt 0:01:39]} Nc6 {[%emt 0:04:17]} 8. exd6 {[%emt 0:04:02]} cxd6 {[%emt 0:01:49]} 9. Ne4 {[%emt 0:02:41]} Be7 {[%emt 0:02:54]} 10. c3 e5 {[%emt 0:04:38]} 11. dxe5 {[%emt 0:01:56]} dxe5 {[%emt 0:01:47]} 12. Ng3 {[%emt 0:06:15]} Be6 {[%emt 0:05:22]} 13. Qe2 {[%emt 0:08:21]} Qd7 {[%emt 0:05:56]} 14. Bb5 {[%emt 0:02:17]} f6 {[%emt 0:09:47]} 15. Be3 {[%emt 0:04:32]} Nd5 {[%emt 0:04:19]} 16. Rd1 {[%emt 0:02:27]} Qc7 {[%emt 0:07:17]} 17. Bc1 {[%emt 0:02:39]} O-O-O {[%emt 0:07:52]} 18. O-O {[%emt 0:00:49]} h5 {[%emt 0:06:07]} 19. Bd3 {[%emt 0:01:38]} g5 {[%emt 0:09:08]} 20. Bf5 {[%emt 0:01:15]} Bxf5 {[%emt 0:00:07]} 21. Nxf5 {[%emt 0:00:04]} h4 {[%emt 0:06:48]} 22. Nd2 {[%emt 0:04:53]} Nf4 {[%emt 0:00:51]} 23. Qg4 {[%emt 0:04:29]} Kb8 {[%emt 0:01:52]} 24. Ne4 {[%emt 0:00:16]} Rxd1 {[%emt 0:03:59]} 25. Rxd1 {[%emt 0:00:15]} Nd8 {[%emt 0:01:13]} 26. Nxe7 {[%emt 0:05:13]} Qxe7 {[%emt 0:00:49]} 27. Rd7 {[%emt 0:00:01]} Qe6 {[%emt 0:02:29]} 28. Qxe6 {[%emt 0:00:14]} Ndxe6 {[%emt 0:00:24]} 29. Bxf4 {[%emt 0:00:13]} Nxf4 {[%emt 0:02:13]} 30. Nxf6 {[%emt 0:07:26]} Kc8 {[%emt 0:02:03]} 31. Rd2 {[%emt 0:00:25]} Rh6 {[%emt 0:03:33]} 32. Ne4 {[%emt 0:01:23]} g4 {[%emt 0:01:05]} 33. g3 {[%emt 0:01:46]} Ne6 {[%emt 0:01:38]} 34. Rd6 {[%emt 0:00:54]} Kc7 {[%emt 0:00:15]} 35. gxh4 {[%emt 0:00:16]} 1-0

[Event "Tatry Open 2018"]
[Site "Tatranska Lomnica"]
[Date "2018.10.07"]
[Round "9"]
[White "Michalicka, Milan"]
[Black "Jablonicky, Frantisek"]
[Result "1/2-1/2"]
[ECO "B91"]
[WhiteElo "2225"]
[BlackElo "2069"]
[Annotator "ChessBase"]
[PlyCount "105"]
[EventDate "2018.09.30"]
[EventType "swiss"]
[EventCountry "SVK"]
[SourceTitle "playchess.com"]
[Source "ChessBase"]
[SourceQuality "1"]
[TimeControl "40/5400+30:1800+30"]

1. Nf3 {[%emt 0:00:00]} d6 {[%emt 0:01:44]} 2. e4 {[%emt 0:00:16]} c5 {[%emt 0:00:13]} 3. d4 {[%emt 0:01:03]} cxd4 {[%emt 0:00:06]} 4. Nxd4 {[%emt 0:00:05]} Nf6 {[%emt 0:00:06]} 5. Nc3 {[%emt 0:00:05]} a6 {[%emt 0:00:04]} 6. g3 {[%emt 0:00:35]} b5 {[%emt 0:01:33]} 7. Bg2 {[%emt 0:00:43]} Bb7 {[%emt 0:00:07]} 8. O-O {[%emt 0:00:39]} e5 {[%emt 0:03:32]} 9. Nde2 {[%emt 0:00:22]} b4 {[%emt 0:00:34]} 10. Nd5 {[%emt 0:00:24]} Nxd5 {[%emt 0:00:12]} 11. exd5 {[%emt 0:00:12]} g6 {[%emt 0:02:29]} 12. Be3 {[%emt 0:01:42]} Bg7 {[%emt 0:05:05]} 13. Qd2 {[%emt 0:00:44]} a5 {[%emt 0:00:06]} 14. f4 {[%emt 0:03:13]} exf4 {[%emt 0:03:52]} 15. Bd4 {[%emt 0:00:33]} Bxd4+ {[%emt 0:01:16]} 16. Qxd4 {[%emt 0:00:24]} O-O {[%emt 0:00:11]} 17. Qxf4 {[%emt 0:02:12]} Ba6 {[%emt 0:00:45]} 18. Rae1 {[%emt 0:01:54]} Qb6+ {[%emt 0:02:12]} 19. Rf2 {[%emt 0:00:41]} Bxe2 {[%emt 0:00:40]} 20. Rexe2 {[%emt 0:00:11]} Nd7 {[%emt 0:00:04]} 21. Re4 {[%emt 0:11:18]} Ne5 {[%emt 0:01:57]} 22. Qh6 {[%emt 0:01:16]} f5 {[%emt 0:02:42]} 23. Rh4 {[%emt 0:01:11]} Ra7 {[%emt 0:00:09]} 24. h3 {[%emt 0:02:34]} Rc8 {[%emt 0:02:30]} 25. Kf1 {[%emt 0:07:12]} Qb5+ {[%emt 0:01:55]} 26. Kg1 {[%emt 0:00:44]} Qa4 {[%emt 0:00:23]} 27. Qg5 {[%emt 0:05:19]} Nf7 {[%emt 0:03:33]} 28. Qe3 {[%emt 0:01:22]} Rb7 {[%emt 0:04:14]} 29. g4 {[%emt 0:02:33]} Re8 {[%emt 0:05:25]} 30. Qb3 {[%emt 0:04:44]} Qxb3 {[%emt 0:00:42]} 31. axb3 {[%emt 0:00:11]} fxg4 {[%emt 0:00:19]} 32. Rxg4 {[%emt 0:00:48]} Re1+ {[%emt 0:00:53]} 33. Rf1 {[%emt 0:02:29]} Rxf1+ {[%emt 0:04:00]} 34. Kxf1 {[%emt 0:01:37]} Rc7 {[%emt 0:06:19]} 35. Be4 {[%emt 0:01:16]} Re7 {[%emt 0:00:29]} 36. Kf2 {[%emt 0:03:31]} Kg7 {[%emt 0:03:50]} 37. Ke3 {[%emt 0:01:06]} Nh6 {[%emt 0:01:42]} 38. Rf4 {[%emt 0:01:09]} Rf7 {[%emt 0:02:04]} 39. Rxf7+ {[%emt 0:02:09]} Nxf7 {[%emt 0:00:19]} 40. Kd4 {[%emt 0:00:27]} Ne5 {[%emt 0:00:25]} 41. c4 {[%emt 0:30:26]} Nd7 {[%emt 0:30:08]} 42. Ke3 {[%emt 0:02:32]} Kf6 {[%emt 0:00:13]} 43. Kf4 {[%emt 0:00:45]} h6 {[%emt 0:00:11]} 44. h4 {[%emt 0:05:05]} Ne5 {[%emt 0:01:27]} 45. Bc2 {[%emt 0:01:09]} g5+ {[%emt 0:01:15]} 46. hxg5+ {[%emt 0:00:26]} hxg5+ {[%emt 0:00:02]} 47. Kg3 {[%emt 0:00:30]} Ng6 {[%emt 0:02:10]} 48. Bxg6 {[%emt 0:04:09]} Kxg6 {[%emt 0:00:02]} 49. Kg4 {[%emt 0:00:09]} Kf6 {[%emt 0:00:59]} 50. Kg3 {[%emt 0:00:23]} Kf5 {[%emt 0:18:30]} 51. Kf3 {[%emt 0:00:29]} Kf6 {[%emt 0:03:22]} 52. Kg4 {[%emt 0:00:13]} Kg6 {[%emt 0:00:17]} 53. Kg3 {[%emt 0:00:08]} 1/2-1/2